Cogmind - Beta 16 @@@ ROGUE MODE // 2026.01.16 @ 07:52:33 Player: GermanMO Result: Destroyed by W8-W9E(R) with Subdweller Laser Performance ------------- Evolutions (0) 0 Regions Visited (3) 600 Robots Destroyed (20) 100 Value Destroyed (297) 297 Prototype IDs (1) 20 Alien Tech Used (0) 0 Bonus (-27) -27 TOTAL SCORE: 990 Bonus ------- Friendly Fire -27 Cogmind --------- Core Integrity 0/250 Matter 175/300 Energy 100/100 System Corruption 0% Temperature Cool (6) Movement Rolling (100) Location -10/Subcaves Parts ------- > --- POWER (1) -------- (None) > --- PROPULSION (2) --- Compact Wheel > --- UTILITY (2) ------ Signal Interpreter > --- WEAPON (2) ------- Light Assault Rifle Hammer > --- INVENTORY (5) ---- Scrap Suit Core Shielding Peak State ------------ > --- POWER ------------ Ion Engine > --- PROPULSION ------- Wheel Wheel > --- UTILITY ---------- Experimental Sensor Array Signal Interpreter > --- WEAPON ----------- Light Assault Rifle Hammer > --- INVENTORY -------- Compact Wheel Scrap Suit Core Shielding Grenade Launcher [Rating: 16] Favorites ----------- Power Ion Engine Engine Ion Engine Propulsion Wheel Wheel Wheel Utility Signal Interpreter Device Experimental Sensor Array Processor Signal Interpreter Weapon Light Assault Rifle Ballistic Gun Light Assault Rifle Launcher Grenade Launcher Impact Weapon Hammer Build | -11 -10 -10 -10 ------- Run | Yrd Mat Min Sub Slots Evolved . | . . . . Power . | . . . . Propulsion . | . . . . Utility . | . . . . Weapon . | . . . . Parts Attached 12 | 7 2 2 1 Power 1 | 1 . . . Engine 1 | 1 . . . Core . | . . . . Reactor . | . . . . Propulsion 3 | 2 . . 1 Treads . | . . . . Leg . | . . . . Wheel 3 | 2 . . 1 Hover . | . . . . Flight . | . . . . Utility 4 | 2 1 1 . Device 3 | 2 . 1 . Storage . | . . . . Processor 1 | . 1 . . Hackware . | . . . . Protection . | . . . . Artifact . | . . . . Weapon 4 | 2 1 1 . Energy Gun . | . . . . Energy Cannon . | . . . . Ballistic Gun 2 | 2 . . . Ballistic Cannon . | . . . . Launcher 1 | . . 1 . Special Weapon . | . . . . Impact Weapon 1 | . 1 . . Slashing Weapon . | . . . . Piercing Weapon . | . . . . Special Melee Weapon . | . . . . Unidentified Prototypes 1 | . . 1 . Parts Lost 5 | . . . 5 Power 1 | . . . 1 Propulsion 2 | . . . 2 Utility 1 | . . . 1 Weapon 1 | . . . 1 Highest Loss Streak 5 | . . . 5 To Critical Strikes 1 | . . . 1 Average Backups 3 | . 3 4 3 Power . | . . . . Propulsion . | . . 1 . Utility 1 | . 2 2 2 Weapon . | . 1 1 . Tool/Special . | . . . . Unused Backups 5 | . 1 2 2 Power . | . . . . Propulsion . | . . . . Utility 4 | . . 2 2 Weapon 1 | . 1 . . Tool/Special . | . . . . Average Slot Usage (%) 94 | . 100 98 91 Engine 12 | . 14 14 11 Wheel 26 | . 28 28 25 Device 15 | . 23 12 12 Processor 11 | . 4 14 14 Ballistic Gun 15 | . 23 10 14 Launcher 1 | . . 3 1 Impact Weapon 9 | . 4 14 10 Peak Build Rating 16 | 9 9 16 16 Average Rating 10 | 5 8 11 14 On Entrance 8 | . 9 9 16 Avg Prop Armor Cover (%) . | . . . . Naked Turns . | . . . . Heaviest Build 11 | 10 10 11 10 Greatest Support 26 | 20 20 20 26 Greatest Overweight (x) . | . . . . Average Overweight (x) . | . . . . Largest Inventory Capacity 5 | 5 5 5 5 Average Capacity 5 | 5 5 5 5 Most Carried 5 | 1 5 5 5 Average Carried 3 | . 4 4 4 Final Capacity 5 | 5 5 5 5 Final Carried 5 | 1 5 5 3 Class Distribution -------------------- 100% | Mutant Dominant Class ---------------- Mutant | -10/Materials Mutant | -10/Mines Mutant | -10/Subcaves Resources | -11 -10 -10 -10 ----------- Run | Yrd Mat Min Sub Matter Collected 466 | 352 60 49 5 Remotely . | . . . . Salvage Created 499 | 234 197 49 19 Parts 27 | 12 13 . 2 Haulers Intercepted . | . . . . Recyclers Shooed . | . . . . Parts Field Recycled . | . . . . Retrieved Matter . | . . . . Parts Self-Destructed 6 | . . . 6 Prevented . | . . . . Parts Restored . | . . . . Kills | -11 -10 -10 -10 ------- Run | Yrd Mat Min Sub Combat Hostiles Destroyed 8 | . 4 2 2 Guns 4 | . 4 . . AOE 3 | . . 1 2 Classes Destroyed 7 | 3 3 . 1 Worker 3 | 2 1 . . Builder 1 | . 1 . . Tunneler 6 | 5 1 . . Recycler 2 | 1 1 . . Swarmer 3 | . 3 . . Grunt 3 | . 1 2 . Subdweller 2 | . . . 2 Best Kill Streak 5 | 5 4 2 2 Combat Bots Only 4 | . 4 2 2 Max Kills in Single Turn 1 | 1 1 1 1 Gunslinging . | . . . . Exploded 1 | . . 1 1 Melee . | . . . . Uniques/NPCs Destroyed . | . . . . Combat | -11 -10 -10 -10 -------- Run | Yrd Mat Min Sub Hostile Shots Fired 48 | . 16 11 21 Missed 9 | . 3 1 5 Hits 39 | . 13 10 16 Projectile 39 | . 13 10 16 Critical Strikes 3 | . . 1 2 Damage Taken 606 | . 107 144 355 Core 251 | . 7 44 200 Absorbed by Shields . | . . . . Core Remaining (%) 100 | 100 . . . Volleys Fired 47 | 24 8 3 12 Largest 2 | 2 2 1 1 Hottest 40 | 40 40 30 30 Shots Fired 77 | 48 14 3 12 Gun 66 | 48 14 . 4 Cannon . | . . . . Launcher 11 | . . 3 8 Special . | . . . . Kinetic 66 | 48 14 . 4 Thermal . | . . . . Explosive 11 | . . 3 8 Electromagnetic . | . . . . Robot Hit Streak 14 | 14 2 4 6 Robot Miss Streak 4 | 2 4 . 1 Penetration Max . | . . . . Secondary Targets 2 | . 2 . . Max Gunslinging Chain 1 | . 1 . . Shots Hit Robots 53 | 34 9 7 3 Core Hits 30 | 10 8 6 6 Critical Kills . | . . . . Critical Parts Destroyed . | . . . . Critical Strikes . | . . . . Melee Attacks 13 | . 5 4 4 Impact 13 | . 5 4 4 Slashing . | . . . . Piercing . | . . . . Sneak Attacks 5 | . 4 1 . Combat Hostiles . | . . . . Follow-up Attacks . | . . . . Damage Inflicted 1320 | 344 309 271 396 Guns 438 | 344 85 . 9 Cannons . | . . . . Explosions 534 | . . 147 387 Melee 348 | . 224 124 . Ramming . | . . . . Kinetic 438 | 344 85 . 9 Thermal . | . . . . Explosive 534 | . . 147 387 Electromagnetic . | . . . . Impact 348 | . 224 124 . Slashing . | . . . . Piercing . | . . . . Highest Corruption . | . . . . Average Corruption . | . . . . Corruption Purged . | . . . . Corruption Blocked . | . . . . Overload Shots . | . . . . Overflow Damage 121 | . 71 50 . Projectiles . | . . . . Explosions . | . . . . Melee 121 | . 71 50 . Knockbacks 2 | . 1 1 . Impact 2 | . 1 1 . Kinetic . | . . . . Secondary . | . . . . Self-Inflicted Damage 3 | . . . 3 Shots 1 | . . . 1 Rammed . | . . . . Targets Rammed . | . . . . Kicked . | . . . . Crushed . | . . . . Highest Temperature 240 | . 6 15 240 Average Temperature 60 | . 6 9 130 Received Heat Transfer 474 | . 6 99 369 Siege Activations . | . . . . Martial Activations . | . . . . Shielding Activations . | . . . . Robots Disrupted . | . . . . Combat Hostiles . | . . . . Robots Corrupted 2 | . 1 1 . Combat Hostiles 1 | . . 1 . Parts Fried 7 | . 6 1 . Impact Corruptions 6 | . 4 2 . Robots Melted . | . . . . Combat Hostiles . | . . . . Parts Melted . | . . . . Heat Transferred . | . . . . Parts Sabotaged . | . . . . Parts Stolen . | . . . . Parts Stripped . | . . . . Power Chain Reactions . | . . . . Alert | -11 -10 -10 -10 ------- Run | Yrd Mat Min Sub Maximum Alert Level . | . . . . Low Security (%) 100 | 100 100 100 . Level 1 . | . . . . Level 2 . | . . . . Level 3 . | . . . . Level 4 . | . . . . Level 5 . | . . . . High Security . | . . . . Max Security . | . . . . Peak Influence 105 | 10 105 94 . Initial 34 | . . 34 . Average 33 | 2 43 56 . Influence Increases 240 | 40 140 60 . Destroy 0b10 Robot/C 120 | . 80 40 . Destroy 0b10 Robot/NC 60 | 40 20 . . Destroy Leader 20 | . 10 10 . Disable Machine 15 | . 15 . . Destroy Structure 10 | . . 10 . Lose Combat Pursuer 15 | . 15 . . Influence Decreases 240 | 40 50 126 24 Entered New Map 69 | . . 56 13 Time Decay 171 | 40 50 70 11 Squads Dispatched . | . . . . Investigation . | . . . . Extermination . | . . . . Reinforcement . | . . . . Assault . | . . . . Garrison . | . . . . Intercept . | . . . . Searches Triggered . | . . . . Construction Impeded . | . . . . Haulers Reinforced . | . . . . Active Scanning Responses . | . . . . Cargo Convoy Interrupts . | . . . . Stealth | -11 -10 -10 -10 --------- Run | Yrd Mat Min Sub Distress Signals . | . . . . Communications Jammed . | . . . . Distress Signals . | . . . . Times Spotted 16 | . 7 2 7 Peak Tracking Total 4 | . 4 2 4 Tactical Retreats 1 | . 1 . . Traps | -11 -10 -10 -10 ------- Run | Yrd Mat Min Sub Traps Triggered . | . . . . Indirectly . | . . . . Trap Hack Attempts . | . . . . Triggered . | . . . . Disarmed . | . . . . Reprogrammed . | . . . . Reused . | . . . . Traps Extracted . | . . . . Installed . | . . . . Triggered . | . . . . Machines | -11 -10 -10 -10 ---------- Run | Yrd Mat Min Sub Machines Disabled 1 | . 1 . . Max in Single Turn 1 | . 1 . . Machines Repaired . | . . . . Machines Dismantled . | . . . . Machines Sabotaged . | . . . . Overloaded Fab Kills . | . . . . Hacking | -11 -10 -10 -10 --------- Run | Yrd Mat Min Sub Machines Accessed 3 | . 2 1 . Terminals 3 | . 2 1 . Fabricators . | . . . . Repair Stations . | . . . . Recycling Units . | . . . . Scanalyzers . | . . . . Garrison Access . | . . . . Total Hacks 7 | . 4 3 . Successful 1 | . 1 . . Failed 6 | . 3 3 . Catastrophic . | . . . . Database Lockouts . | . . . . Manual 4 | . 4 . . Terminals 7 | . 4 3 . Fabricators . | . . . . Repair Stations . | . . . . Recycling Units . | . . . . Scanalyzers . | . . . . Garrison Access . | . . . . Terminal Hacks . | . . . . Fabricator Hacks . | . . . . Repair Station Hacks . | . . . . Recycling Unit Hacks . | . . . . Scanalyzer . | . . . . Garrison Access Hacks . | . . . . Unauthorized Hacks 1 | . 1 . . Terminals 1 | . 1 . . Botnet 1 | . 1 . . Fabricators . | . . . . Repair Stations . | . . . . Recycling Units . | . . . . Scanalyzers . | . . . . Garrison Access . | . . . . Data Cores Recovered . | . . . . Used . | . . . . Hacking Detections 2 | . 1 1 . Full Trace Events . | . . . . Feedback Events . | . . . . Feedback Blocked . | . . . . Robot Schematics Acquired . | . . . . Robots Built . | . . . . Authchips . | . . . . Time . | . . . . Total Robot Build Rating . | . . . . Part Schematics Acquired . | . . . . Parts Built . | . . . . Authchips . | . . . . Time . | . . . . Total Part Build Rating . | . . . . Part Studies Acquired . | . . . . Parts Repaired . | . . . . Time . | . . . . Parts Recycled . | . . . . Recycled Matter . | . . . . Retrieved Matter . | . . . . Retrieved Components . | . . . . Parts Scanalyzed . | . . . . Part Schematics Acquired . | . . . . Parts Damaged . | . . . . Bothacking | -11 -10 -10 -10 ------------ Run | Yrd Mat Min Sub Used RIF Installer . | . . . . Robots Hacked . | . . . . Non-combat . | . . . . Combat . | . . . . Robot Hacks Applied . | . . . . Relay Couplers Released . | . . . . Fabnet Peak Effective % . | . . . . Robots Rewired . | . . . . Allies Hacked . | . . . . Hacks Repelled . | . . . . Allies | -11 -10 -10 -10 -------- Run | Yrd Mat Min Sub Total Allies . | . . . . Largest Group . | . . . . Highest-Rated Group . | . . . . Highest-Rated Ally . | . . . . Total Orders . | . . . . Ally Attacks . | . . . . Total Damage . | . . . . Kills . | . . . . Allies Corrupted . | . . . . Allies Melted . | . . . . Intel | -11 -10 -10 -10 ------- Run | Yrd Mat Min Sub Active Infowar (turns) 740 | 44 197 146 353 Sensors 392 | . . 39 353 Terrain 330 | 26 197 107 . Seismic 175 | 44 131 . . Robot Analysis Total . | . . . . Derelict Logs Recovered . | . . . . Drone Launches . | . . . . Drone Recoveries . | . . . . Exploration | -11 -10 -10 -10 ------------- Run | Yrd Mat Min Sub Turns Passed 930 | 170 197 151 412 Spaces Moved 855 | 103 186 136 430 Core 5 | 5 . . . Treads . | . . . . Legs . | . . . . Wheels 850 | 98 186 136 430 Hover . | . . . . Flight . | . . . . Fastest Speed 50 | 50 80 80 80 Average Speed 80 | 78 80 80 82 Slowest Speed 100 | 80 80 80 100 Overloaded Moves . | . . . . Propulsion Burnouts . | . . . . Robots Hopped . | . . . . Potential Cave-ins . | . . . . Cave-ins Triggered . | . . . . Exploration Rate (%) 21 | 5 30 28 21 Regions Visited 3 Branch Regions 2 Pre-discovered Areas . | . . . . Known Exits Taken 2 | . 1 1 . Unknown Exits Taken 1 | 1 . . . Scrap Searched . | . . . . Spaces Dug . | . . . . Terrain Destroyed 39 | . . 14 25 Melee . | . . . . Projectile . | . . . . AOE 39 | . . 14 25 Terrain Rammed . | . . . . Walls Destroyed . | . . . . Machines Disabled . | . . . . Actions | -11 -10 -10 -10 --------- Run | Yrd Mat Min Sub Total 995 | 145 213 167 470 Wait 50 | 11 4 16 19 Move 852 | 102 185 135 430 Hop . | . . . . Pick Up 8 | 1 6 1 . Fast Attach 10 | 7 1 2 . Attach 2 | . . . 2 Detach . | . . . . Swap 6 | . 1 2 3 Drop 7 | . 3 4 . Fire 47 | 24 8 3 12 Melee 13 | . 5 4 4 Ram . | . . . . Kick . | . . . . Crush . | . . . . Escape Stasis . | . . . . Rewire . | . . . . Trap . | . . . . Miscellaneous . | . . . . Route ------- -11/Scrapyard -10/Materials -10/Mines -10/Subcaves (discovered 1 exit: *Mat) History --------- Turn | Location | Event 9 | -11/Scrapyard | Discovered new exit (range 16) 171 | -11/Scrapyard | Entered Materials 215 | -10/Materials | Discovered new exit (range 5) 324 | -10/Materials | Build established: Mutant 367 | -10/Materials | Identified exit to Mines 368 | -10/Materials | Entered Mines 426 | -10/Mines | Found a Scrap Suit stashed away for nefarious purposes 434 | -10/Mines | Found Scrap Suit 478 | -10/Mines | Found a damaged Exp. Sensor Array with a note attached 480 | -10/Mines | Found Prototype Device 480 | -10/Mines | Identified Exp. Sensor Array 515 | -10/Mines | Discovered new exit (range 5) 518 | -10/Mines | Identified exit to Subcaves 519 | -10/Mines | Entered Subcaves 520 | -10/Subcaves | Approached by a straggling Scientist 657 | -10/Subcaves | Discovered new exit (range 9) 662 | -10/Subcaves | Identified exit to Materials 847 | -10/Subcaves | Ambushed by Subdwellers from Twisted Machinery 871 | -10/Subcaves | Core integrity fell below 50% 903 | -10/Subcaves | Lost 5 parts (1p2n1u1w) 913 | -10/Subcaves | A swath of the cavern ceiling suddenly collapsed 926 | -10/Subcaves | Core integrity fell below 20% 931 | -10/Subcaves | Destroyed by W8-W9E(R) with Subdweller Laser Last Messages --------------- EG-PPO(c): "I think it's somewhere west of here" 00681_ 4W-1WY(u) builds Twisted Machinery. EG-PPO(c): "I think it's somewhere west of here" EG-PPO(c): "I think it's somewhere northwest of here" 00814_ NA-1ST(R) destroyed. 00818_ XP-CW8(R) destroyed. EG-PPO(c): "I think it's somewhere northwest of here" 00829_ The unstable cave ceiling collapses. 00847_ F6-JZI(R) emerges from the Twisted Machinery. 00849_ Critical hit (Destroy). 00849_ Wheel destroyed. 00866_ Grenade Launcher destroyed. 00866_ Ion Engine destroyed. 00872_ Wheel destroyed. 00872_ Exp. Sensor Array destroyed. 00872_ Critical hit (Meltdown: +270). EG-PPO(c): "I think it's somewhere northwest of here" A swath of the cavern ceiling suddenly collapses. EG-PPO(c): "I think it's somewhere northwest of here" [Achievement: This Is Interesting...] Map ----- +----------------------------------------------------+ | ?????????????????????????????????????????????? | | ?????????????????????????????????????????????? | | ?????????????????????????????????????????????? | | ?????????????????????????????????????????????? | | ?????????????????????????????????????????????? | | ?????????????????????????????????????????????? | | ?????????????????????????????????????????????? | | ?????????????????????????????????????????????? | | ????????????????????? ??????????????????????? | | ????????????????????? ?????????????????????? | | ?????###????????????? "?????????????????????? | | ???## #????????????? ?????????????????????? | | ???# ###??????????? ?????????????????????? | | ???# ???????????# #????????????????????? | | ???# ?#??????##?? ????????????????????? | | #### ?? ###??? ?? ????????????????????? | | # #??# ???? ?# ????????????????????? | | # %##?# ##???? ## ##???????????????????? | | ### ?????# ###?????????????????? | | # #####?? #?????????????????? | | %## ## ##?? #?????????????????? | | ###### #?# #?? # #??????????????????? | | ## #???# ### ### #;"##??????????????????? | | ?# ##### ## ##R;##??????????????????? | | ## #""#;##??????????????????? | | # #### #"#;@#??????????????????? | | ###??#""""####??????????????????? | | ## ## #????#"#"## #?????????????????? | | #### ### #????##"## #????????????????? | | ???# #?# = ?? ""# #????????????????? | | ##?# ## ## % #???????????????? | | #?# ## ## # #??????????????? | | #?# ### ##### # ## ? #??????????????? | | #?## ##??##???# #? #?# #?#??????????????? | | ##??######???????? ?? #??###????????????????? | | ?????????????????? ?? ?????????????????????? | | ?????????????????? ?? ?????????????????????? | | ?????????????????? ??? ?????????????????????? | | ?????????????????? ???"?????????????????????? | | ?????????????????? ?????????????????????????? | | ?????????????????? ??????????????????????????? | | ?????????????????????????????????????????????? | | ?????????????????????????????????????????????? | | ?????????????????????????????????????????????? | | ?????????????????????????????????????????????? | | ?????????????????????????????????????????????? | | ?????????????????????????????????????????????? | | ?????????????????????????????????????????????? | | ?????????????????????????????????????????????? | | ?????????????????????????????????????????????? | +----------------------------------------------------+ Best States ------------- Heat Dissipation 25 Energy Generation 10 Energy Capacity 250 Matter Stores 300 Matter Capacity 300 Sight Range 16 Robot Scan Range 20 Terrain Scan Range 16 Terrain Scan Density 10 Evasion (%) 44 Item Schematics ----------------- None Robot Schematics ------------------ None Fabricated ------------ Nothing Repaired ---------- Nothing Studied --------- None Alien Tech Used ----------------- None Achievements -------------- This Is Interesting... Challenges ------------ None Game ------ Seed DisintegrationMicroDirector Manual? 0 Play Time 00:16:00 Cumulative 30.1 hours Start 2026.01.16 @ 07:36:09 End 2026.01.16 @ 07:52:33 Sessions 1 Manual Loads 0 Difficulty Rogue Special Mode None Game No. 40 Rogue 21 Adventurer 0 Explorer 19 Win Type - Total 1 Types 1/0/0/0/0/0/0/0/0/0 Lore% 27 Gallery% 28 Achievement% 23 Wizard Run 0 Options --------- Layout 0 ASCII 0 Keyboard 1 Movement Arrows Keybinds 0 Fullscreen 2 Font 12/Smallcaps Map View 76x50 Zoom Use 0% Tactical HUD 1 Map Filters NONE Filters NONE Steam X RUN: 327733d4-4213-4ea7-b2d4-d2d43adb3175